[Event "GER-ch Youth U14 2020"]
[Site "Willingen"]
[Date "2020.10.21"]
[Round "3.13"]
[White "Stork, Christopher"]
[Black "Pfeffer, Samuel"]
[Result "1-0"]
[ECO "C50"]
[WhiteElo "1869"]
[BlackElo "1427"]
[Annotator "NA RC"]
[PlyCount "104"]
[EventDate "2020.10.20"]
[EventType "swiss"]
[EventRounds "7"]
[EventCountry "GER"]
[SourceTitle "playchess.com"]
[Source "ChessBase"]
[SourceQuality "1"]
[TimeControl "40/5400+30:1800+30"]

1. e4 {[%emt 0:00:00]} e5 {[%emt 0:00:00]} 2. Nf3 {[%emt 0:00:00]} Nc6 {[%emt 0:01:18]} 3. Bc4 {[%emt 0:00:00]} Nf6 {[%emt 0:01:24]} 4. d3 {[%emt 0:00:06]} Bc5 {[%emt 0:01:35]} 5. c3 {[%emt 0:00:56]} d6 {[%emt 0:00:59]} 6. O-O {[%emt 0:00:24]} a6 {[%emt 0:05:04]} 7. a4 {[%emt 0:01:25] now scores much better than the old 7.Bb3. Played by Levon Aronian in September 2020. C54: Giuoco Piano: 4 c3 Nf6, main lines with 5 d4 and 5 d3.} Ba7 {[%emt 0:01:36]} 8. Nbd2 {[%emt 0:01:26]} O-O {[%emt 0:01:15]} 9. Re1 {[%emt 0:01:08]} Ne7 {[%emt 0:01:45]} 10. Nf1 {[%emt 0:00:15]} Ng4 {[%emt 0:02:44]} 11. Re2 {[%emt 0:02:07]} Ng6 {[%emt 0:01:18]} 12. Ng3 {[%emt 0:02:00]} h6 {[%emt 0:02:07]} (12... Nh4 $5 {[%cal Rh4f3]} 13. d4 Nxf3+ 14. gxf3 Nf6 $11) 13. h3 {[%emt 0:03:07]} Nf6 {[%emt 0:01:25] [#]} 14. Be3 $146 {[%emt 0:03:38]} ({Predecessor:} 14. Bb3 Re8 15. d4 Bd7 16. Be3 Bc6 17. d5 Bd7 18. Bxa7 Rxa7 19. a5 Nf4 20. Rd2 {1-0 (50) Lagunow,R (2353)-Bracker,F (2392) Germany 2017}) 14... Nf4 {[%emt 0:03:29]} 15. Bxf4 {[%emt 0:01:33]} exf4 {[%emt 0:00:02]} 16. Nf1 $1 {[%emt 0:00:36]} d5 {[%emt 0:03:19]} 17. exd5 {[%emt 0:00:52]} Nxd5 {[%emt 0:01:32]} 18. d4 {[%emt 0:01:32]} Bf5 {[%emt 0:02:31]} 19. Qd2 {[%emt 0:02:47]} c6 {[%emt 0:04:32]} 20. Bxd5 {[%emt 0:05:02]} cxd5 {[%emt 0:01:32]} 21. Qxf4 {[%emt 0:01:18]} Bd3 {[%emt 0:00:57]} 22. Re3 {[%emt 0:01:19]} Bb8 {[%emt 0:02:14]} 23. Qh4 {[%emt 0:03:33]} Be4 {[%emt 0:03:43]} 24. Qxd8 {[%emt 0:02:27]} Rxd8 {[%emt 0:00:50]} 25. g3 {[%emt 0:01:40]} f5 {[%emt 0:02:34]} 26. Ne5 {[%emt 0:02:22]} Bxe5 {[%emt 0:01:16]} 27. dxe5 {[%emt 0:00:05]} d4 {[%emt 0:01:57]} 28. cxd4 {[%emt 0:01:18]} Rxd4 {[%emt 0:00:22]} 29. f4 {[%emt 0:02:49]} Rc8 {[%emt 0:02:14]} 30. Rae1 {[%emt 0:04:01]} a5 {[%emt 0:04:40]} 31. b3 {[%emt 0:03:48]} Rc2 {[%emt 0:02:14]} 32. R1e2 {[%emt 0:04:59]} Rc1 {[%emt 0:01:33]} 33. Kf2 {[%emt 0:02:09]} Rdd1 {[%emt 0:14:07]} 34. Re1 {[%emt 0:02:34]} Rxe1 {[%emt 0:02:43]} 35. Rxe1 {[%emt 0:00:23]} Rxe1 {[%emt 0:00:24]} 36. Kxe1 {[%emt 0:00:06]} Bd5 $2 {[%emt 0:00:55]} (36... Bc2 $16) 37. Nd2 {[%emt 0:00:27]} g5 {[%emt 0:02:30]} 38. Nc4 {[%emt 0:01:00]} b5 {[%emt 0:01:25]} 39. Nxa5 {[%emt 0:02:58]} bxa4 {[%emt 0:00:24]} 40. bxa4 {[%emt 0:00:05]} gxf4 {[%emt 0:01:12]} 41. gxf4 {[%emt 0:30:07]} Kf7 {[%emt 0:31:22]} 42. Kd2 {[%emt 0:01:18]} Kg6 {[%emt 0:01:17]} 43. Kc3 {[%emt 0:00:44]} Kh5 {[%emt 0:01:49]} 44. Kd4 {[%emt 0:00:29]} Be4 {[%emt 0:00:16]} 45. Nc4 {[%emt 0:01:09]} Kh4 {[%emt 0:00:33]} 46. Nd6 {[%emt 0:00:22]} Kxh3 {[%emt 0:03:49]} 47. Nxe4 {[%emt 0:00:15]} fxe4 {[%emt 0:00:35]} 48. Kxe4 {[%emt 0:00:09]} Kg2 {[%emt 0:00:27]} 49. e6 {[%emt 0:00:05]} h5 {[%emt 0:00:08]} 50. e7 {[%emt 0:00:05]} h4 {[%emt 0:00:12]} 51. e8=Q {[%emt 0:00:06]} h3 {[%emt 0:00:06]} 52. Qg6+ {[%emt 0:00:17]} Kh1 {[%emt 0:00:03]} 1-0

[Event "GER-ch Youth U14 2020"]
[Site "Willingen"]
[Date "2020.10.21"]
[Round "3.14"]
[White "Raasch, Hauke"]
[Black "Tham, Nam"]
[Result "0-1"]
[ECO "D00"]
[WhiteElo "1676"]
[BlackElo "1890"]
[Annotator "NA RC"]
[PlyCount "82"]
[EventDate "2020.10.20"]
[EventType "swiss"]
[EventRounds "7"]
[EventCountry "GER"]
[SourceTitle "playchess.com"]
[Source "ChessBase"]
[SourceQuality "1"]
[TimeControl "40/5400+30:1800+30"]

1. d4 {[%emt 0:00:00]} d5 {[%emt 0:00:00]} 2. Bf4 {[%emt 0:00:00]} Nf6 {[%emt 0:00:08]} 3. e3 {[%emt 0:00:09]} c5 {[%emt 0:01:10]} 4. c3 {[%emt 0:00:26]} Nc6 {[%emt 0:00:21]} 5. Nf3 {[%emt 0:00:23]} e6 {[%emt 0:01:31]} 6. Bd3 {[%emt 0:01:07]} Be7 {[%emt 0:04:43]} 7. h3 {[%emt 0:01:05] D02: 1 d4 d5 2 Nf3 sidelines, including 2...Nf6 3 g3 and 2...Nf6 3 Bf4.} c4 {[%emt 0:09:52]} 8. Bc2 {[%emt 0:00:36]} b5 {[%emt 0:00:09]} 9. a3 {[%emt 0:01:53]} Bb7 {[%emt 0:00:55]} 10. Nbd2 {[%emt 0:00:41]} a5 {[%emt 0:00:27]} 11. e4 {[%emt 0:03:01]} Qb6 {[%emt 0:08:22] [#]} 12. e5 $146 {[%emt 0:01:35]} ({Predecessor:} 12. O-O O-O 13. e5 Nd7 14. Qe2 h6 15. Nh2 b4 16. axb4 axb4 17. Ndf3 b3 18. Rxa8 Rxa8 {½-½ (36) Pedemonte,C-Paez Moguer,J Sant Cebria 1998}) 12... Nd7 {[%emt 0:00:48]} 13. Ng5 {[%emt 0:12:37]} Bxg5 {[%emt 0:10:44]} (13... h6 $11 14. Ngf3 Qc7) 14. Bxg5 {[%emt 0:00:09]} h6 {[%emt 0:00:04]} 15. Qh5 {[%emt 0:02:51] [#]} Nxd4 $1 {[%emt 0:06:14]} 16. cxd4 {[%emt 0:18:20]} Qxd4 {[%emt 0:00:12]} 17. O-O {[%emt 0:19:51]} Qxe5 {[%emt 0:09:59]} 18. Nf3 {[%emt 0:01:11]} Qxb2 19. Rfc1 {[%emt 0:01:19]} g6 {[%emt 0:04:26]} 20. Bxg6 {[%emt 0:07:58]} hxg5 {[%emt 0:00:09]} 21. Bxf7+ {[%emt 0:00:08]} Ke7 {[%emt 0:00:17]} 22. Qg6 {[%emt 0:00:27]} Qf6 {[%emt 0:00:05]} 23. Qxf6+ {[%emt 0:13:07]} Kxf6 {[%emt 0:01:09]} 24. Nxg5 Kxg5 25. Bxe6 {[%emt 0:01:16]} Nc5 {[%emt 0:00:37]} 26. Re1 {[%emt 0:02:07]} Rhe8 {[%emt 0:00:57]} 27. Bg4 {[%emt 0:01:47]} Nd3 {[%emt 0:01:01]} 28. Re2 {[%emt 0:02:32]} Rxe2 {[%emt 0:00:58]} 29. Bxe2 Nf4 30. Bf3 {[%emt 0:02:43]} b4 {[%emt 0:01:37]} 31. g3 {[%emt 0:01:32]} Nd3 {[%emt 0:00:13]} 32. Be2 {[%emt 0:00:16]} Re8 {[%emt 0:01:48]} 33. Bxd3 {[%emt 0:02:08]} cxd3 {[%emt 0:00:06]} 34. Rd1 {[%emt 0:00:24]} Ba6 {[%emt 0:00:28]} 35. axb4 {[%emt 0:00:46]} axb4 {[%emt 0:00:06]} 36. Ra1 {[%emt 0:00:26]} d2 {[%emt 0:00:10]} 37. f4+ {[%emt 0:00:32]} Kf5 {[%emt 0:00:07]} 38. Kf2 {[%emt 0:00:36]} Re2+ {[%emt 0:00:21]} 39. Kf3 $19 {[%emt 0:00:33]} Re1 {[%emt 0:00:10]} 40. g4+ {[%emt 0:00:05]} Kf6 {[%emt 0:00:07]} 41. Rxa6+ {[%emt 0:30:09]} Ke7 {[%emt 0:30:05]} 0-1

[Event "GER-ch Youth U14 2020"]
[Site "Willingen"]
[Date "2020.10.21"]
[Round "3.15"]
[White "Bilous, Danylo"]
[Black "Freude, Max"]
[Result "1/2-1/2"]
[ECO "D66"]
[WhiteElo "1723"]
[BlackElo "1850"]
[Annotator "NA RC"]
[PlyCount "45"]
[EventDate "2020.10.20"]
[EventType "swiss"]
[EventRounds "7"]
[EventCountry "GER"]
[SourceTitle "playchess.com"]
[Source "ChessBase"]
[SourceQuality "1"]
[TimeControl "40/5400+30:1800+30"]

{[%evp 12,42,18,25,32767,27,20,6,20,29,18,32767,32767,0,18,32767,0,32767,-20,-32,-14,32767,-31,32767,32767,32767,-62,32767,32767,-101,-100,32767,-85]} 1. d4 {[%emt 0:00:00]} Nf6 {[%emt 0:00:00]} 2. c4 {[%emt 0:00:01]} e6 {[%emt 0:00:05]} 3. Nf3 {[%emt 0:00:05]} d5 {[%emt 0:00:32]} 4. Nc3 {[%emt 0:00:05]} Be7 {[%emt 0:00:51]} 5. Bg5 {[%emt 0:00:50]} O-O {[%emt 0:01:00]} 6. e3 {[%emt 0:00:58]} c6 {[%emt 0:01:58]} 7. Rc1 {[%emt 0:00:26]} Nbd7 {[%emt 0:06:13]} 8. Bd3 {[%emt 0:01:23]} dxc4 {[%emt 0:03:04]} 9. Bxc4 {[%emt 0:00:08]} b6 {[%emt 0:03:30]} 10. O-O {[%emt 0:04:27] D66: Queen's Gambit Declined: Classical: Main Line (7 Rc1 c6 8 Bd3).} Bb7 {[%emt 0:01:20]} 11. Bd3 {[%emt 0:09:00]} c5 {[%emt 0:07:05]} 12. Bb1 {[%emt 0:10:42]} Nd5 {[%emt 0:18:16]} 13. Bxe7 {[%emt 0:02:57]} Qxe7 {[%emt 0:01:40] [#]} 14. dxc5 $146 {[%emt 0:01:44]} ({Predecessor:} 14. Qc2 f5 15. Qe2 Rf6 16. Rfd1 Re8 17. dxc5 Nxc5 18. Nxd5 Bxd5 19. Ne5 Rh6 20. g3 Qf6 21. f4 {1-0 (35) Jauk,W-Schuetze,T Oberhof 1998}) 14... Nxc3 {[%emt 0:07:28]} 15. Rxc3 {[%emt 0:00:12]} Nxc5 {[%emt 0:00:16]} 16. b4 {[%emt 0:05:07]} Rfd8 {[%emt 0:12:29]} 17. Qe2 {[%emt 0:15:17]} Ba6 {[%emt 0:08:14]} 18. b5 {[%emt 0:00:33]} Bb7 {[%emt 0:00:12]} 19. Rd1 {[%emt 0:03:37]} Rxd1+ {[%emt 0:03:56]} 20. Qxd1 {[%emt 0:03:47]} Rd8 $17 {[%emt 0:01:36]} 21. Qe2 {[%emt 0:02:48]} Qd6 {[%emt 0:03:59]} 22. Rc1 {[%emt 0:02:32]} g6 {[%emt 0:02:59]} 23. h3 {[%emt 0:00:32]} 1/2-1/2

[Event "GER-ch Youth U14 2020"]
[Site "Willingen"]
[Date "2020.10.21"]
[Round "3.16"]
[White "Lerchl, Clemens"]
[Black "Spriestersbach, Kai"]
[Result "0-1"]
[ECO "B28"]
[WhiteElo "1699"]
[BlackElo "1863"]
[Annotator "NA RC"]
[PlyCount "84"]
[EventDate "2020.10.20"]
[EventType "swiss"]
[EventRounds "7"]
[EventCountry "GER"]
[SourceTitle "playchess.com"]
[Source "ChessBase"]
[SourceQuality "1"]
[TimeControl "40/5400+30:1800+30"]

1. e4 {[%emt 0:00:00]} c5 {[%emt 0:00:00]} 2. Nf3 {[%emt 0:00:00]} a6 {[%emt 0:00:00]} 3. c3 {[%emt 0:00:00]} d5 {[%emt 0:00:00]} 4. exd5 {[%emt 0:00:04]} Qxd5 {[%emt 0:00:03]} 5. d4 {[%emt 0:00:11]} Nf6 {[%emt 0:00:33]} 6. Be2 {[%emt 0:00:48]} e6 {[%emt 0:00:17]} 7. O-O {[%emt 0:00:23]} cxd4 {[%emt 0:00:54] B28: Sicilian: 2 Nf3 a6 (O'Kelly Variation).} 8. cxd4 {[%emt 0:04:58]} Be7 {[%emt 0:01:30]} 9. Nc3 {[%emt 0:00:55]} Qd6 {[%emt 0:00:49]} 10. Re1 {[%emt 0:08:56]} O-O {[%emt 0:01:33] [#]} 11. Ne5 $146 {[%emt 0:01:15]} ({Predecessor:} 11. Bf1 Nc6 12. a3 b5 13. b4 Rd8 14. Be3 Bb7 15. Bxb5 axb5 16. Nxb5 Qd7 17. Qb3 Nxb4 18. axb4 Qxb5 {0-1 (28) Cappa,E (1641)-Castrogiovanni,C (1984) Crema 2012}) 11... Rd8 {[%emt 0:04:15] [#]} 12. Nc4 {[%emt 0:12:10]} (12. Bh5 $1 $16) 12... Qc7 {[%emt 0:03:33]} 13. g3 $1 {[%emt 0:16:20]} Bc5 {[%emt 0:12:17]} 14. Bf4 {[%emt 0:05:21]} Qe7 {[%emt 0:00:38]} 15. Be5 $2 {[%emt 0:19:59]} (15. dxc5 $18 Rxd1 16. Raxd1 (16. Rexd1 Nc6 $11)) 15... Nc6 {[%emt 0:02:35]} 16. Bxf6 {[%emt 0:00:32]} Qxf6 {[%emt 0:01:26]} 17. Ne4 {[%emt 0:03:26]} Qxd4 {[%emt 0:01:16]} 18. Qxd4 {[%emt 0:00:23]} Bxd4 {[%emt 0:00:52]} 19. Rad1 {[%emt 0:00:53]} b5 {[%emt 0:00:55]} 20. Ne3 {[%emt 0:00:56]} Bb7 {[%emt 0:01:01]} 21. Nc3 {[%emt 0:00:52]} (21. Nc2 $17 {was necessary.}) 21... Ne5 {[%emt 0:01:17]} 22. Nc2 {[%emt 0:01:49]} Bb6 {[%emt 0:01:04]} 23. Rxd8+ {[%emt 0:01:52]} Rxd8 {[%emt 0:00:14]} 24. Rd1 {[%emt 0:00:15]} Rxd1+ {[%emt 0:01:42]} 25. Bxd1 {[%emt 0:00:07]} Nd3 {[%emt 0:00:25]} 26. Kf1 {[%emt 0:02:04]} Nxf2 {[%emt 0:01:11]} 27. Be2 {[%emt 0:00:36]} Ne4 {[%emt 0:01:42]} 28. Nxe4 {[%emt 0:00:49]} Bxe4 {[%emt 0:00:07]} 29. Nb4 {[%emt 0:00:18]} Bb7 {[%emt 0:02:22]} 30. b3 {[%emt 0:05:04]} f5 {[%emt 0:03:19]} 31. a3 {[%emt 0:04:09]} Bc5 {[%emt 0:00:48]} 32. Nc2 {[%emt 0:01:39]} Be4 {[%emt 0:01:06]} 33. b4 {[%emt 0:01:11]} Bb6 {[%emt 0:00:38]} 34. Bd1 {[%emt 0:00:09]} g5 {[%emt 0:00:47]} 35. Ke2 {[%emt 0:00:52]} g4 {[%emt 0:01:01]} 36. Ne1 {[%emt 0:00:09]} Kf7 {[%emt 0:04:06]} 37. Nd3 {[%emt 0:00:22]} Bf3+ {[%emt 0:04:29]} 38. Ke1 {[%emt 0:00:11]} Bxd1 {[%emt 0:00:19]} 39. Kxd1 {[%emt 0:00:14]} Bd4 {[%emt 0:00:49]} 40. Kc2 {[%emt 0:00:26]} e5 {[%emt 0:00:59]} 41. Kb3 $19 {[%emt 0:30:23]} Ke6 {[%emt 0:30:18]} 42. a4 {[%emt 0:00:10]} Kd5 {[%emt 0:00:20]} 0-1

[Event "GER-ch Youth U14 2020"]
[Site "Willingen"]
[Date "2020.10.21"]
[Round "3.18"]
[White "Niemann, Leon"]
[Black "Huo, Da"]
[Result "0-1"]
[ECO "B59"]
[WhiteElo "1880"]
[BlackElo "1868"]
[Annotator "NA RC"]
[PlyCount "128"]
[EventDate "2020.10.20"]
[EventType "swiss"]
[EventRounds "7"]
[EventCountry "GER"]
[SourceTitle "playchess.com"]
[Source "ChessBase"]
[SourceQuality "1"]
[TimeControl "40/5400+30:1800+30"]

1. e4 {[%emt 0:00:00]} c5 {[%emt 0:00:00]} 2. Nf3 {[%emt 0:00:00]} d6 {[%emt 0:00:00]} 3. d4 {[%emt 0:00:00]} cxd4 {[%emt 0:00:00]} 4. Nxd4 {[%emt 0:00:00]} Nf6 {[%emt 0:00:00]} 5. Nc3 {[%emt 0:00:00]} Nc6 {[%emt 0:00:00]} 6. Be2 {[%emt 0:00:06]} e5 {[%emt 0:00:02]} 7. Nb3 {[%emt 0:00:06]} Be6 {[%emt 0:00:06]} 8. f4 {[%emt 0:00:11] [#] B59: Classical Sicilian: 6 Be2 e5 7 Nb3.} a5 $146 {[%emt 0:22:55]} ({Predecessor:} 8... exf4 9. Bxf4 Be7 10. O-O O-O 11. Kh1 Rc8 12. Nd4 Nxd4 13. Qxd4 a6 14. Rad1 Rc6 15. Bf3 Qa5 16. Qd2 Kh8 17. e5 dxe5 18. Bxc6 bxc6 19. Bg5 Qb4 20. Bxf6 gxf6 21. Qh6 Rg8 {1-0 (58) Kowalczyk,P (2330)-Bardeli,L (2188) Poronin 2017}) 9. f5 {[%emt 0:01:16]} Bc8 {[%emt 0:01:59]} 10. a4 {[%emt 0:05:35]} Nb4 {[%emt 0:02:42]} 11. Bg5 {[%emt 0:06:30]} Be7 {[%emt 0:05:10]} 12. Bxf6 {[%emt 0:01:45]} Bxf6 {[%emt 0:03:14]} 13. Nd5 {[%emt 0:26:40]} Nxd5 {[%emt 0:05:44]} 14. Qxd5 {[%emt 0:02:26]} O-O {[%emt 0:00:43]} 15. Rd1 {[%emt 0:07:38]} Qc7 {[%emt 0:03:17]} 16. c3 {[%emt 0:02:49]} Be7 {[%emt 0:08:33]} 17. O-O {[%emt 0:02:57]} Bd7 {[%emt 0:02:06]} 18. Bb5 {[%emt 0:03:27]} Bc6 {[%emt 0:01:01]} 19. Qd3 {[%emt 0:03:20]} Rfd8 {[%emt 0:03:56]} 20. c4 {[%emt 0:00:53]} Bg5 {[%emt 0:11:33]} 21. g3 {[%emt 0:05:34]} Qb6+ {[%emt 0:13:58]} 22. Kg2 {[%emt 0:00:31]} Rac8 {[%emt 0:03:37]} 23. Rf3 {[%emt 0:10:16]} Bxb5 {[%emt 0:01:30]} 24. axb5 {[%emt 0:00:43]} a4 {[%emt 0:01:58]} 25. h4 {[%emt 0:01:45]} Bh6 {[%emt 0:01:51]} 26. Nd2 {[%emt 0:02:09]} Qc5 {[%emt 0:00:58]} 27. Rc1 {[%emt 0:02:08]} Qb4 {[%emt 0:00:36]} 28. Rc2 {[%emt 0:07:40]} Bxd2 {[%emt 0:00:25]} 29. Qxd2 {[%emt 0:01:29]} Qxd2+ {[%emt 0:00:39]} 30. Rxd2 {[%emt 0:00:00]} Rxc4 {[%emt 0:00:12]} 31. Rc3 {[%emt 0:01:56]} Rxc3 {[%emt 0:02:28]} 32. bxc3 {[%emt 0:00:04]} Kf8 {[%emt 0:00:04]} 33. Ra2 {[%emt 0:02:45]} Ra8 {[%emt 0:03:02]} 34. Ra3 {[%emt 0:00:05]} Ra5 {[%emt 0:00:30]} 35. Kf3 {[%emt 0:02:51]} Rxb5 {[%emt 0:00:24]} 36. Rxa4 {[%emt 0:00:08]} Rb3 {[%emt 0:01:01]} 37. Rc4 {[%emt 0:00:14]} b5 {[%emt 0:00:23]} 38. Rc8+ {[%emt 0:02:02]} Ke7 {[%emt 0:00:33]} 39. Kf2 {[%emt 0:00:59]} (39. Rc7+ $17 Kf6 40. g4) 39... Rb2+ {[%emt 0:01:13]} 40. Kf1 {[%emt 0:00:28]} Rc2 {[%emt 0:01:02]} 41. Rc7+ {[%emt 0:05:39] [#]} Ke8 $1 {[%emt 0:01:32]} 42. Rc8+ {[%emt 0:04:33]} Kd7 {[%emt 0:09:22]} 43. Rg8 {[%emt 0:02:26]} Rxc3 {[%emt 0:00:46]} 44. Rxg7 {[%emt 0:00:38]} Ke7 {[%emt 0:00:06]} 45. Rg8 {[%emt 0:04:34]} Re3 {[%emt 0:02:12]} 46. Rb8 {[%emt 0:03:46]} Rxe4 {[%emt 0:00:19]} 47. Rxb5 {[%emt 0:00:10]} Kf6 {[%emt 0:00:38]} 48. Rb6 {[%emt 0:00:52]} Rd4 {[%emt 0:00:11]} 49. g4 {[%emt 0:00:03]} Rxg4 {[%emt 0:00:31]} 50. Rxd6+ {[%emt 0:00:02]} Kxf5 {[%emt 0:00:11]} 51. Rh6 {[%emt 0:00:03]} Rg7 {[%emt 0:00:29]} 52. Kf2 {[%emt 0:00:16]} f6 {[%emt 0:01:20]} 53. Kf3 {[%emt 0:00:11]} Rd7 {[%emt 0:03:26]} 54. Ke3 {[%emt 0:00:54]} e4 {[%emt 0:06:02]} 55. Ke2 {[%emt 0:00:39]} Ke5 {[%emt 0:00:46]} 56. Ke3 {[%emt 0:02:16]} f5 {[%emt 0:00:49]} 57. Rh5 {[%emt 0:00:14]} Rg7 {[%emt 0:00:26]} 58. Rh6 {[%emt 0:00:46]} f4+ $19 {[%emt 0:00:22]} 59. Kf2 {[%emt 0:00:24]} Ra7 {[%emt 0:00:57]} 60. Rb6 {[%emt 0:02:13]} Ra2+ {[%emt 0:00:25]} 61. Kg1 {[%emt 0:00:42]} f3 {[%emt 0:00:26]} 62. Rb7 {[%emt 0:00:15]} e3 {[%emt 0:00:32]} 63. Rxh7 {[%emt 0:00:18]} Ra1+ {[%emt 0:00:24]} 64. Kh2 {[%emt 0:00:03]} e2 {[%emt 0:00:34]} 0-1

[Event "GER-ch Youth U14 2020"]
[Site "Willingen"]
[Date "2020.10.21"]
[Round "3.19"]
[White "Sallandt, Frido"]
[Black "Brunner, Alexander"]
[Result "1-0"]
[ECO "B23"]
[WhiteElo "1770"]
[BlackElo "1692"]
[Annotator "NA RC"]
[PlyCount "63"]
[EventDate "2020.10.20"]
[EventType "swiss"]
[EventRounds "7"]
[EventCountry "GER"]
[SourceTitle "playchess.com"]
[Source "ChessBase"]
[SourceQuality "1"]
[TimeControl "40/5400+30:1800+30"]

1. e4 {[%emt 0:00:00]} c5 {[%emt 0:00:00]} 2. Nc3 {[%emt 0:00:00]} a6 {[%emt 0:00:00]} 3. g3 {[%emt 0:00:07]} b5 {[%emt 0:00:32]} 4. Bg2 {[%emt 0:00:32]} Bb7 {[%emt 0:00:15]} 5. d3 {[%emt 0:02:00]} e6 {[%emt 0:02:07]} 6. f4 {[%emt 0:04:46]} d5 {[%emt 0:01:16]} 7. e5 {[%emt 0:03:50]} Qc7 {[%emt 0:03:06]} 8. Nf3 {[%emt 0:01:42]} d4 {[%emt 0:03:56]} 9. Ne4 {[%emt 0:02:11]} Nh6 {[%emt 0:03:03]} 10. O-O {[%emt 0:01:47]} Nd7 {[%emt 0:04:13]} 11. Qe1 {[%emt 0:02:28]} Be7 {[%emt 0:02:24]} 12. Bd2 {[%emt 0:01:55]} Nb6 {[%emt 0:03:55]} 13. h3 {[%emt 0:10:56]} O-O-O {[%emt 0:04:46]} 14. Nfg5 {[%emt 0:11:54]} Rdf8 {[%emt 0:03:48]} 15. g4 {[%emt 0:01:48]} Nd5 {[%emt 0:01:53]} 16. c4 {[%emt 0:10:58]} bxc4 {[%emt 0:07:06]} 17. dxc4 {[%emt 0:00:18]} Nb4 {[%emt 0:00:31]} 18. Bxb4 {[%emt 0:01:24]} cxb4 {[%emt 0:00:30]} 19. c5 {[%emt 0:00:30]} a5 {[%emt 0:05:46]} 20. Nd6+ {[%emt 0:00:48]} Bxd6 {[%emt 0:01:13]} 21. exd6 {[%emt 0:01:58]} Qb8 {[%emt 0:02:02]} 22. c6 {[%emt 0:01:16]} Ba6 {[%emt 0:00:43]} 23. Qe5 {[%emt 0:03:32]} Qb6 {[%emt 0:01:33]} 24. Rfc1 {[%emt 0:04:38]} d3+ {[%emt 0:03:25]} 25. Kh2 {[%emt 0:00:48]} Ng8 {[%emt 0:02:36]} 26. Nxf7 {[%emt 0:01:11]} Nf6 {[%emt 0:00:59]} 27. Qxe6+ {[%emt 0:01:41]} Kb8 {[%emt 0:00:41]} 28. Nxh8 {[%emt 0:00:32]} d2 {[%emt 0:00:33]} 29. c7+ {[%emt 0:03:34]} Ka7 {[%emt 0:00:02]} 30. c8=N+ {[%emt 0:00:44]} Bxc8 {[%emt 0:00:22]} 31. Rxc8 {[%emt 0:00:09]} Rxc8 {[%emt 0:00:14]} 32. Qxc8 {[%emt 0:00:07]} 1-0

[Event "GER-ch Youth U14 2020"]
[Site "Willingen"]
[Date "2020.10.21"]
[Round "3.20"]
[White "Weidenhöfer, Max"]
[Black "Meuer, David"]
[Result "0-1"]
[ECO "C01"]
[WhiteElo "1897"]
[BlackElo "1632"]
[Annotator "NA RC"]
[PlyCount "84"]
[EventDate "2020.10.20"]
[EventType "swiss"]
[EventRounds "7"]
[EventCountry "GER"]
[SourceTitle "playchess.com"]
[Source "ChessBase"]
[SourceQuality "1"]
[TimeControl "40/5400+30:1800+30"]

1. e4 {[%emt 0:00:00]} e6 {[%emt 0:00:00]} 2. d4 {[%emt 0:00:00]} d5 {[%emt 0:00:00]} 3. exd5 {[%emt 0:00:00]} exd5 {[%emt 0:00:00]} 4. Nf3 {[%emt 0:00:00]} Bd6 {[%emt 0:00:15]} 5. Bd3 {[%emt 0:00:00]} Nc6 {[%emt 0:00:15]} 6. c3 {[%emt 0:04:40]} Nge7 {[%emt 0:02:10]} 7. Qc2 {[%emt 0:03:08]} h6 {[%emt 0:04:38] C01: French: Exchange Variation.} 8. O-O {[%emt 0:01:10]} O-O {[%emt 0:02:03]} 9. Re1 {[%emt 0:01:03]} Re8 {[%emt 0:06:29]} 10. Nbd2 {[%emt 0:01:54] [#]} Be6 $146 {[%emt 0:08:28]} ({Predecessor:} 10... Ng6) 11. Ne5 {[%emt 0:03:26]} Qc8 {[%emt 0:07:33]} 12. Qb3 {[%emt 0:09:29]} (12. Ndf3 $14) 12... Nxe5 {[%emt 0:11:06]} 13. dxe5 {[%emt 0:00:28]} Bc5 {[%emt 0:00:44]} 14. Nf3 {[%emt 0:08:52]} Nc6 {[%emt 0:04:07]} 15. Bb1 {[%emt 0:11:00]} Ne7 {[%emt 0:15:27]} 16. Nh4 {[%emt 0:04:35]} Nf5 {[%emt 0:11:25]} 17. Nxf5 {[%emt 0:03:14]} Bxf5 {[%emt 0:00:07]} 18. Qxd5 {[%emt 0:12:44]} Bxb1 {[%emt 0:02:11]} 19. Qxc5 {[%emt 0:03:56]} Bf5 {[%emt 0:01:17]} 20. Bf4 {[%emt 0:04:02]} Be6 {[%emt 0:01:32]} 21. Qe3 {[%emt 0:02:35]} Qd7 {[%emt 0:02:17]} 22. Bxh6 {[%emt 0:10:10]} (22. Qg3 $14 Kh8 23. Qf3) 22... gxh6 {[%emt 0:00:59]} 23. Qxh6 {[%emt 0:00:13]} Rad8 {[%emt 0:01:04]} 24. h3 {[%emt 0:00:53]} Bf5 {[%emt 0:01:00]} 25. Re3 {[%emt 0:01:14]} (25. Qg5+ $1 $11 Bg6 26. e6) 25... Re6 {[%emt 0:00:58]} 26. Qf4 {[%emt 0:06:03]} Rg6 {[%emt 0:01:34]} 27. Kh2 {[%emt 0:00:42]} Qc6 {[%emt 0:03:55]} 28. g4 {[%emt 0:03:28]} Be6 {[%emt 0:01:38]} 29. Rg1 {[%emt 0:00:48]} Rd2 {[%emt 0:02:17]} 30. Reg3 {[%emt 0:01:42]} (30. b3 {is a better defense.}) 30... Rxb2 {[%emt 0:02:11]} 31. Rd3 {[%emt 0:00:42]} Qc5 {[%emt 0:01:29]} 32. Rd8+ {[%emt 0:02:01]} Kg7 {[%emt 0:00:16]} 33. Rf1 $11 {[%emt 0:01:26] and White has nothing to worry.} Bc4 {[%emt 0:01:15]} (33... Rxa2 34. Rd2) 34. Rd7 {[%emt 0:00:23]} Be6 $11 {[%emt 0:00:42]} ({Black should try} 34... Bxa2 $19 35. Qd4 Rc6 36. e6+ Qxd4 37. Rxf7+ {[#]} Kg8 $1 {[%mdl 512]} 38. cxd4 Bxe6) 35. Rd3 $2 {[%emt 0:00:15]} Rxa2 {[%emt 0:01:50]} 36. g5 {[%emt 0:00:24]} Re2 {[%emt 0:00:42]} 37. h4 {[%emt 0:01:09]} Qxe5 {[%emt 0:00:23]} 38. Qxe5+ {[%emt 0:00:01]} Rxe5 {[%emt 0:00:14]} 39. f4 {[%emt 0:00:44]} Bc4 {[%emt 0:01:48]} 40. Rfd1 {[%emt 0:00:49]} Re2+ {[%emt 0:00:31]} 41. Kg3 {[%emt 0:30:33]} Bxd3 {[%emt 0:30:17]} 42. Rxd3 {[%emt 0:00:02]} Rd6 {[%emt 0:01:50]} 0-1